[Event "53rd Mar Del Plata Open 2024"]
[Site "Mar Del Plata"]
[Date "2024.03.30"]
[Round "8.4"]
[White "Villegas, Franco"]
[Black "Carrizo, Luciano Ariel"]
[Result "1/2-1/2"]
[ECO "B51"]
[WhiteElo "2328"]
[BlackElo "2176"]
[Annotator "RC"]
[PlyCount "138"]
[EventDate "2024.03.23"]
[EventType "swiss"]
[EventCountry "ARG"]
[SourceTitle "playchess.com"]
[Source "ChessBase"]
[SourceQuality "1"]
[TimeControl "5400+30"]

1. e4 {[%emt 0:00:07]} c5 {[%emt 0:00:19]} 2. Nf3 {[%emt 0:00:18]} d6 {[%emt 0:00:06]} 3. Bb5+ {[%emt 0:00:25]} Nd7 {[%emt 0:00:47]} 4. c3 {[%emt 0:00:20]} Ngf6 {[%emt 0:00:19]} 5. Qe2 {[%emt 0:00:20]} a6 {[%emt 0:00:50]} 6. Ba4 {[%emt 0:00:19]} e6 {[%emt 0:15:44]} 7. O-O {[%emt 0:00:38]} Be7 {[%emt 0:01:47]} 8. d4 {[%emt 0:00:42]} b5 {[%emt 0:01:56]} 9. Bc2 {[%emt 0:00:09]} cxd4 {[%emt 0:00:05]} 10. cxd4 {[%emt 0:00:27]} Bb7 {[%emt 0:00:22]} 11. Bf4 {[%emt 0:02:42]} Rc8 {[%emt 0:00:51]} 12. Bd3 {[%emt 1:30:03]} O-O {[%emt 0:05:46]} 13. h3 {[%emt 0:00:00]} Qb6 {[%emt 0:04:12]} 14. Nbd2 {[%emt 0:00:00]} Rfd8 {[%emt 0:01:50]} 15. Bh2 {[%emt 0:00:00]} Nf8 {[%emt 0:10:40]} 16. a4 {[%emt 0:00:00]} b4 {[%emt 0:03:04]} 17. Nc4 {[%emt 0:00:00]} Qa7 {[%emt 0:00:08]} 18. Rfc1 {[%emt 0:00:00]} d5 {[%emt 0:11:55]} 19. exd5 {[%emt 0:00:00]} Bxd5 {[%emt 0:00:09]} 20. Nce5 {[%emt 0:00:00]} Bb7 {[%emt 0:12:53]} 21. Ng5 {[%emt 0:00:00]} Rxc1+ {[%emt 0:13:29]} 22. Rxc1 {[%emt 0:00:00]} Qxd4 {[%emt 0:00:16]} 23. Rd1 {[%emt 0:00:00]} Ne4 {[%emt 0:07:55]} 24. Ngxf7 {[%emt 0:00:00]} Rd5 {[%emt 0:00:19]} 25. Re1 {[%emt 0:00:00]} Nd6 {[%emt 0:02:35]} 26. Nxd6 {[%emt 0:00:00]} Bxd6 {[%emt 0:00:38]} 27. Bc2 {[%emt 0:00:00]} Qd2 {[%emt 0:03:11]} 28. Bb3 {[%emt 0:00:00]} Rd4 {[%emt 0:00:09]} 29. Bg3 {[%emt 0:00:00]} Qxe2 {[%emt 0:01:00]} 30. Rxe2 {[%emt 0:00:00]} Bd5 {[%emt 0:00:17]} 31. Bxd5 {[%emt 0:00:00]} Rxd5 {[%emt 0:00:58]} 32. Nc6 {[%emt 0:00:00]} Bc5 {[%emt 0:00:58]} 33. Bf4 {[%emt 0:00:00]} Rd1+ {[%emt 0:00:51]} 34. Kh2 {[%emt 0:00:00]} Rb1 {[%emt 0:00:35]} 35. a5 {[%emt 0:00:00]} Kf7 {[%emt 0:00:22]} 36. Rd2 {[%emt 0:00:00]} h6 {[%emt 0:00:35]} 37. Bc7 {[%emt 0:00:00]} Rc1 {[%emt 0:00:35]} 38. Nd8+ {[%emt 0:05:01]} Kf6 {[%emt 0:00:23]} 39. Nb7 {[%emt 0:00:37]} Be7 {[%emt 0:00:09]} 40. Bf4 {[%emt 0:02:17]} Rc6 {[%emt 0:00:43]} 41. Bd6 {[%emt 0:01:22]} e5 {[%emt 0:00:37]} 42. Bb8 {[%emt 0:03:00]} Rc8 {[%emt 0:00:24]} 43. Bd6 {[%emt 0:00:11]} Rc6 {[%emt 0:00:02]} 44. Rd5 {[%emt 0:00:57]} Nd7 {[%emt 0:00:28]} 45. Bxb4 {[%emt 0:00:19]} Ke6 {[%emt 0:00:26]} 46. Rd1 {[%emt 0:00:14]} e4 {[%emt 0:01:18]} 47. Rd4 {[%emt 0:00:47]} Nf6 {[%emt 0:00:29]} 48. Bxe7 {[%emt 0:00:43]} Kxe7 {[%emt 0:00:11]} 49. b4 {[%emt 0:00:25]} Rc2 {[%emt 0:00:32]} 50. Nc5 {[%emt 0:00:20]} Rxf2 {[%emt 0:00:08]} 51. Nxe4 {[%emt 0:02:20]} Nxe4 {[%emt 0:00:01]} 52. Rxe4+ {[%emt 0:00:05]} Kf7 {[%emt 0:01:00]} 53. Rc4 {[%emt 0:00:47]} Rb2 {[%emt 0:00:08]} 54. Rc7+ {[%emt 0:00:04]} Kf6 {[%emt 0:01:04]} 55. Rb7 {[%emt 0:00:25]} Rb3 {[%emt 0:00:15]} 56. Rb6+ {[%emt 0:00:42]} Kf5 {[%emt 0:00:36]} 57. Rxa6 {[%emt 0:00:33]} Rxb4 {[%emt 0:00:05]} 58. Ra8 {[%emt 0:00:02]} Ra4 {[%emt 0:00:17]} 59. a6 {[%emt 0:00:05]} Kg6 {[%emt 0:00:13]} 60. Kg3 {[%emt 0:00:05]} Ra2 {[%emt 0:00:19]} 61. Kf3 {[%emt 0:00:13]} Kf7 {[%emt 0:00:21]} 62. h4 {[%emt 0:00:55]} h5 {[%emt 0:00:50]} 63. g3 {[%emt 0:00:20]} Ra3+ {[%emt 0:00:18]} 64. Kf4 {[%emt 0:00:24]} Kg6 {[%emt 0:00:02]} 65. Ra7 {[%emt 0:02:19]} Kh7 {[%emt 0:01:47]} 66. Kg5 {[%emt 0:00:48]} Rxg3+ {[%emt 0:00:19]} 67. Kf5 {[%emt 0:00:25]} Ra3 {[%emt 0:01:00]} 68. Ra8 {[%emt 0:00:05]} Ra4 {[%emt 0:00:12]} 69. Kg5 {[%emt 0:00:17]} Rg4+ {[%emt 0:00:05]} 1/2-1/2

[Event "53rd Mar Del Plata Open 2024"]
[Site "Mar Del Plata"]
[Date "2024.03.30"]
[Round "8.5"]
[White "Coro, Lucas"]
[Black "Unhold, Valentin"]
[Result "0-1"]
[ECO "C78"]
[WhiteElo "2316"]
[BlackElo "2146"]
[Annotator "RC"]
[PlyCount "104"]
[EventDate "2024.03.23"]
[EventType "swiss"]
[EventCountry "ARG"]
[SourceTitle "playchess.com"]
[Source "ChessBase"]
[SourceQuality "1"]
[TimeControl "5400+30"]

1. e4 {[%emt 0:00:35]} e5 {[%emt 0:00:12]} 2. Nf3 {[%emt 0:00:32]} Nc6 {[%emt 0:00:08]} 3. Bb5 {[%emt 0:03:30]} a6 {[%emt 0:00:10]} 4. Ba4 {[%emt 0:00:24]} Nf6 {[%emt 0:00:11]} 5. d3 {[%emt 0:01:59]} Bc5 {[%emt 0:00:26]} 6. O-O {[%emt 0:03:52]} d6 {[%emt 0:00:40]} 7. c3 {[%emt 0:00:37]} O-O {[%emt 0:04:45]} 8. Re1 {[%emt 0:04:48]} Ba7 {[%emt 0:01:10]} 9. Bg5 {[%emt 0:04:39]} h6 {[%emt 0:01:01]} 10. Bh4 {[%emt 0:00:17]} g5 {[%emt 0:01:37]} 11. Bg3 {[%emt 0:00:14]} Ne7 {[%emt 0:01:17]} 12. d4 {[%emt 0:05:36]} Ng6 {[%emt 0:02:48]} 13. Nbd2 {[%emt 0:00:59]} Bg4 {[%emt 0:13:16]} 14. h3 {[%emt 0:12:31]} Bh5 {[%emt 0:00:31]} 15. Qc2 {[%emt 0:04:28]} Qe7 {[%emt 0:03:24]} 16. Bb3 {[%emt 0:15:34]} Kh8 {[%emt 0:07:05]} 17. Qd3 {[%emt 0:19:32]} Rg8 {[%emt 0:25:32]} 18. Nc4 {[%emt 0:01:54]} Nf4 {[%emt 0:01:58]} 19. Bxf4 {[%emt 0:00:02]} gxf4 {[%emt 0:00:12]} 20. Kh2 {[%emt 0:02:10]} Rg7 {[%emt 0:02:30]} 21. Re2 {[%emt 0:02:24]} Rag8 {[%emt 0:01:38]} 22. Rg1 {[%emt 0:00:05]} Nh7 {[%emt 0:04:33]} 23. Ree1 {[%emt 0:00:10]} Bxf3 {[%emt 0:03:56]} 24. Qxf3 {[%emt 0:00:19]} Qh4 {[%emt 0:03:49]} 25. Nd2 {[%emt 0:04:51]} exd4 {[%emt 0:01:35]} 26. Ref1 {[%emt 0:02:05]} dxc3 {[%emt 0:01:37]} 27. bxc3 {[%emt 0:01:37]} Ng5 {[%emt 0:04:09]} 28. Qe2 {[%emt 0:00:12]} f3 {[%emt 0:02:26]} 29. Nxf3 {[%emt 0:00:05]} Qf4+ {[%emt 0:00:07]} 30. Kh1 {[%emt 0:00:03]} Qxe4 {[%emt 0:00:57]} 31. Bd1 {[%emt 0:00:21]} Qxe2 {[%emt 0:00:19]} 32. Bxe2 {[%emt 0:00:12]} Ne4 {[%emt 0:00:07]} 33. g4 {[%emt 0:03:50]} Bxf2 {[%emt 0:04:29]} 34. Bd3 {[%emt 0:00:04]} Bxg1 {[%emt 0:00:42]} 35. Bxe4 {[%emt 0:00:05]} Bc5 {[%emt 0:01:44]} 36. Bxb7 {[%emt 0:00:05]} h5 {[%emt 0:02:00]} 37. g5 {[%emt 0:00:20]} Rf8 {[%emt 0:00:54]} 38. Bxa6 {[%emt 0:01:39]} f6 {[%emt 0:00:12]} 39. h4 {[%emt 0:00:57]} fxg5 {[%emt 0:00:13]} 40. hxg5 {[%emt 0:00:04]} Be3 {[%emt 0:00:29]} 41. Bb7 {[%emt 0:01:10]} Bxg5 {[%emt 0:01:30]} 42. a4 {[%emt 0:00:21]} Rb8 {[%emt 0:00:28]} 43. Bd5 {[%emt 0:00:06]} Be3 {[%emt 0:00:41]} 44. Re1 {[%emt 0:00:17]} Bb6 {[%emt 0:00:19]} 45. Re6 {[%emt 0:00:15]} Rg4 {[%emt 0:01:04]} 46. c4 {[%emt 0:01:29]} Kg7 {[%emt 0:01:23]} 47. Kh2 {[%emt 0:01:00]} Ba5 {[%emt 0:00:44]} 48. Re7+ {[%emt 0:03:13]} Kf6 {[%emt 0:01:09]} 49. Rf7+ {[%emt 0:00:11]} Kg6 {[%emt 0:00:06]} 50. Kh3 {[%emt 0:00:40]} c6 {[%emt 0:00:37]} 51. Be6 {[%emt 0:00:14]} Re8 {[%emt 0:00:15]} 52. Ra7 {[%emt 0:01:24]} Rxe6 {[%emt 0:00:06]} 0-1

[Event "53rd Mar Del Plata Open 2024"]
[Site "Mar Del Plata"]
[Date "2024.03.30"]
[Round "8.6"]
[White "Rodriguez, Mathias"]
[Black "Moreno Perez, Tobias Sebastian"]
[Result "0-1"]
[ECO "A07"]
[WhiteElo "2157"]
[BlackElo "2246"]
[Annotator "RC"]
[PlyCount "70"]
[EventDate "2024.03.23"]
[EventType "swiss"]
[EventCountry "ARG"]
[SourceTitle "playchess.com"]
[Source "ChessBase"]
[SourceQuality "1"]
[TimeControl "5400+30"]

1. g3 {[%emt 0:00:03]} Nf6 {[%emt 0:01:32]} 2. Bg2 {[%emt 0:00:04]} d5 {[%emt 0:00:37]} 3. Nf3 {[%emt 0:00:15]} e6 {[%emt 0:00:19]} 4. O-O {[%emt 0:00:10]} Bd6 {[%emt 0:01:26]} 5. b3 {[%emt 0:08:56]} e5 {[%emt 0:03:31]} 6. c4 {[%emt 0:06:11]} e4 {[%emt 0:11:40]} 7. Ne1 {[%emt 0:04:58]} Be5 {[%emt 0:01:35]} 8. Nc3 {[%emt 0:00:05]} dxc4 {[%emt 0:01:15]} 9. Ba3 {[%emt 0:04:02]} Bxc3 {[%emt 0:05:48]} 10. dxc3 {[%emt 0:03:46]} Qxd1 {[%emt 0:00:56]} 11. Rxd1 {[%emt 0:00:03]} Be6 {[%emt 0:06:11]} 12. f3 {[%emt 0:13:17]} Nbd7 {[%emt 0:08:13]} 13. Nc2 {[%emt 0:24:54]} cxb3 {[%emt 0:05:47]} 14. Nd4 {[%emt 0:02:39]} bxa2 {[%emt 0:01:05]} 15. Nxe6 {[%emt 0:08:26]} fxe6 {[%emt 0:00:53]} 16. Rd2 {[%emt 0:06:48]} b6 {[%emt 0:17:04]} 17. Bh3 {[%emt 0:04:10]} Kf7 {[%emt 0:00:48]} 18. fxe4 {[%emt 0:03:11]} Ne5 {[%emt 0:03:07]} 19. Rxa2 {[%emt 0:01:49]} h6 {[%emt 0:05:19]} 20. Bc1 {[%emt 0:01:59]} Ke7 {[%emt 0:00:15]} 21. Bf4 {[%emt 0:01:44]} Nfd7 {[%emt 0:00:19]} 22. Rfa1 {[%emt 0:00:24]} a5 {[%emt 0:00:27]} 23. Rd1 {[%emt 0:03:00]} g5 {[%emt 0:00:26]} 24. Bc1 {[%emt 0:00:58]} Nc4 {[%emt 0:00:41]} 25. Bf1 {[%emt 0:00:35]} Nde5 {[%emt 0:00:16]} 26. Rd4 {[%emt 0:00:15]} c5 {[%emt 0:00:12]} 27. e3 {[%emt 0:00:39]} b5 {[%emt 0:01:54]} 28. Bxc4 {[%emt 0:00:34]} Nxc4 {[%emt 0:00:56]} 29. Rxc4 {[%emt 0:00:31]} bxc4 {[%emt 0:00:02]} 30. Ra4 {[%emt 0:00:07]} Rhd8 {[%emt 0:00:38]} 31. Ba3 {[%emt 0:00:04]} Rd1+ {[%emt 0:00:38]} 32. Kg2 {[%emt 0:00:02]} g4 {[%emt 0:01:04]} 33. Bxc5+ {[%emt 0:01:38]} Kf7 {[%emt 0:00:11]} 34. Ra2 {[%emt 0:00:30]} e5 {[%emt 0:00:57]} 35. Rb2 {[%emt 0:00:40]} Rad8 {[%emt 0:00:15]} 0-1

[Event "53rd Mar Del Plata Open 2024"]
[Site "Mar Del Plata"]
[Date "2024.03.30"]
[Round "8.7"]
[White "Leskovar, Mario"]
[Black "Villarreal, Agustin"]
[Result "1-0"]
[ECO "C84"]
[WhiteElo "2164"]
[BlackElo "2285"]
[Annotator "RC"]
[PlyCount "120"]
[EventDate "2024.03.23"]
[EventType "swiss"]
[EventCountry "ARG"]
[SourceTitle "playchess.com"]
[Source "ChessBase"]
[SourceQuality "1"]
[TimeControl "5400+30"]

1. e4 {[%emt 0:00:19]} e5 {[%emt 0:00:11]} 2. Nf3 {[%emt 0:00:42]} Nc6 {[%emt 0:00:04]} 3. Bb5 {[%emt 0:00:19]} a6 {[%emt 0:00:11]} 4. Ba4 {[%emt 0:00:15]} Nf6 {[%emt 0:00:06]} 5. d4 {[%emt 0:01:00]} exd4 {[%emt 0:00:31]} 6. O-O {[%emt 0:00:42]} Be7 {[%emt 0:03:19]} 7. Re1 {[%emt 0:02:49]} b5 {[%emt 0:02:42]} 8. e5 {[%emt 0:00:21]} Nxe5 {[%emt 0:00:01]} 9. Nxe5 {[%emt 0:01:07]} bxa4 {[%emt 0:00:06]} 10. Qxd4 {[%emt 0:00:14]} O-O {[%emt 0:00:18]} 11. Nc3 {[%emt 0:00:58]} Rb8 {[%emt 0:01:40]} 12. a3 {[%emt 0:00:54]} Bb7 {[%emt 0:06:30]} 13. Qxa4 {[%emt 0:01:15]} Re8 {[%emt 0:09:05]} 14. Bg5 {[%emt 0:04:20]} h6 {[%emt 0:19:10]} 15. Bh4 {[%emt 0:09:05]} c6 {[%emt 0:10:37]} 16. Rad1 {[%emt 0:05:03]} Nd5 {[%emt 0:07:46]} 17. Bxe7 {[%emt 0:05:44]} Nxc3 {[%emt 0:00:14]} 18. Qc4 {[%emt 0:02:38]} Rxe7 {[%emt 0:02:02]} 19. Qxc3 {[%emt 0:00:21]} Qc7 {[%emt 0:00:34]} 20. Ng6 {[%emt 0:09:57]} Re6 {[%emt 0:16:12]} 21. Ne7+ {[%emt 0:02:08]} Kh8 {[%emt 0:00:00]} 22. Nf5 {[%emt 0:00:17]} Rf6 {[%emt 0:00:08]} 23. Re5 {[%emt 0:04:44]} d6 {[%emt 0:05:20]} 24. Re7 {[%emt 0:00:43]} Qd8 {[%emt 0:03:41]} 25. Rxd6 {[%emt 0:02:05]} Qxe7 {[%emt 0:00:01]} 26. Nxe7 {[%emt 0:00:14]} Rxd6 {[%emt 0:00:01]} 27. h3 {[%emt 0:00:55]} Re8 {[%emt 0:00:18]} 28. Nf5 {[%emt 0:00:15]} Rf6 {[%emt 0:00:04]} 29. Ne3 {[%emt 0:00:41]} Bc8 {[%emt 0:00:05]} 30. Qd3 {[%emt 0:01:14]} Rg6 {[%emt 0:00:54]} 31. Kh2 {[%emt 0:03:22]} Rf6 {[%emt 0:01:12]} 32. Kg1 {[%emt 0:00:23]} Rg6 {[%emt 0:00:02]} 33. Kf1 {[%emt 0:00:12]} Rf6 {[%emt 0:02:35]} 34. b4 {[%emt 0:00:58]} Rfe6 {[%emt 0:03:02]} 35. g4 {[%emt 0:02:30]} Kg8 {[%emt 0:01:24]} 36. c4 {[%emt 0:01:14]} Rf6 {[%emt 0:02:48]} 37. Kg2 {[%emt 0:01:59]} Rg6 {[%emt 0:01:10]} 38. c5 {[%emt 0:03:43]} h5 {[%emt 0:00:23]} 39. Kg3 {[%emt 0:00:19]} hxg4 {[%emt 0:00:59]} 40. hxg4 {[%emt 0:00:10]} Rge6 {[%emt 0:01:14]} 41. Nf5 {[%emt 0:02:15]} Re4 {[%emt 0:01:50]} 42. f3 {[%emt 0:01:43]} Re2 {[%emt 0:00:01]} 43. Nd6 {[%emt 0:01:02]} R8e3 {[%emt 0:00:02]} 44. Qd4 {[%emt 0:00:47]} Be6 {[%emt 0:00:48]} 45. Ne8 {[%emt 0:02:20]} f6 {[%emt 0:01:39]} 46. Qd8 {[%emt 0:00:31]} Kf7 {[%emt 0:01:19]} 47. Nd6+ {[%emt 0:00:27]} Kg6 {[%emt 0:00:01]} 48. Qe8+ {[%emt 0:02:42]} Kh7 {[%emt 0:00:03]} 49. Qxc6 {[%emt 0:01:14]} Rxa3 {[%emt 0:00:01]} 50. Ne4 {[%emt 0:01:41]} Bf7 {[%emt 0:01:07]} 51. Qb7 {[%emt 0:00:33]} Kg6 {[%emt 0:01:46]} 52. Qd7 {[%emt 0:00:48]} Raa2 {[%emt 0:00:41]} 53. Qf5+ {[%emt 0:01:24]} Kh6 {[%emt 0:00:01]} 54. g5+ {[%emt 0:01:42]} fxg5 {[%emt 0:00:01]} 55. Qxg5+ {[%emt 0:01:10]} Kh7 {[%emt 0:00:01]} 56. Qh4+ {[%emt 0:00:25]} Kg6 {[%emt 0:00:53]} 57. Qg4+ {[%emt 0:00:50]} Kh7 {[%emt 0:00:28]} 58. Kf4 {[%emt 0:03:04]} Bg6 {[%emt 0:01:04]} 59. Qh4+ {[%emt 0:00:45]} Kg8 {[%emt 0:00:04]} 60. Qd8+ {[%emt 0:00:16]} Kf7 {[%emt 0:02:00]} 1-0

[Event "53rd Mar Del Plata Open 2024"]
[Site "Mar Del Plata"]
[Date "2024.03.30"]
[Round "8.8"]
[White "Jaque Gutierrez, Matias"]
[Black "Romero Barreto, Jaime Jose"]
[Result "1-0"]
[ECO "E62"]
[WhiteElo "2173"]
[BlackElo "2320"]
[Annotator "RC"]
[PlyCount "109"]
[EventDate "2024.03.23"]
[EventType "swiss"]
[EventCountry "ARG"]
[SourceTitle "playchess.com"]
[Source "ChessBase"]
[SourceQuality "1"]
[TimeControl "5400+30"]

1. d4 {[%emt 0:00:14]} Nf6 {[%emt 0:00:14]} 2. c4 {[%emt 0:00:11]} g6 {[%emt 0:01:05]} 3. g3 {[%emt 0:00:17]} Bg7 {[%emt 0:00:07]} 4. Bg2 {[%emt 0:00:14]} O-O {[%emt 0:00:51]} 5. Nc3 {[%emt 0:00:16]} d6 {[%emt 0:00:33]} 6. Nf3 {[%emt 0:00:25]} c6 {[%emt 0:00:28]} 7. e4 {[%emt 0:01:04]} Bd7 {[%emt 0:04:13]} 8. O-O {[%emt 0:01:39]} Qc8 {[%emt 0:00:19]} 9. e5 {[%emt 0:07:27]} dxe5 {[%emt 0:04:33]} 10. dxe5 {[%emt 0:01:09]} Ng4 {[%emt 0:05:34]} 11. Bf4 {[%emt 0:09:07]} Rd8 {[%emt 0:17:04]} 12. h3 {[%emt 0:13:02]} Be6 {[%emt 0:04:58]} 13. Qc1 {[%emt 0:01:36]} Bxc4 {[%emt 0:11:35]} 14. Re1 {[%emt 0:02:56]} Na6 {[%emt 0:00:08]} 15. hxg4 {[%emt 0:01:56]} Nb4 {[%emt 0:02:45]} 16. Re4 {[%emt 0:04:33]} Nd3 {[%emt 0:01:11]} 17. Qc2 {[%emt 0:02:04]} Be6 {[%emt 0:03:02]} 18. Bg5 {[%emt 0:05:17]} Qc7 {[%emt 0:03:10]} 19. Nb5 {[%emt 0:06:46]} Qb6 {[%emt 0:09:57]} 20. Nbd4 {[%emt 0:03:58]} Nb4 {[%emt 0:00:06]} 21. Qc3 {[%emt 0:06:03]} Bd5 {[%emt 0:00:34]} 22. Ree1 {[%emt 0:01:13]} Nxa2 {[%emt 0:04:27]} 23. Qa3 {[%emt 0:00:25]} f6 {[%emt 0:01:20]} 24. exf6 {[%emt 0:04:04]} exf6 {[%emt 0:00:07]} 25. Bd2 {[%emt 0:00:33]} Bf8 {[%emt 0:01:40]} 26. Qa5 {[%emt 0:02:34]} Qxa5 {[%emt 0:12:10]} 27. Bxa5 {[%emt 0:00:04]} b6 {[%emt 0:00:04]} 28. Bd2 {[%emt 0:01:13]} Bc5 {[%emt 0:06:43]} 29. Ne6 {[%emt 0:18:45]} Bxf3 {[%emt 0:00:06]} 30. Nxd8 {[%emt 0:01:46]} Rxd8 {[%emt 0:00:04]} 31. Be3 {[%emt 0:01:00]} Bxg2 {[%emt 0:02:35]} 32. Kxg2 {[%emt 0:00:17]} Nb4 {[%emt 0:00:07]} 33. Bxc5 {[%emt 0:00:32]} Nc2 {[%emt 0:00:05]} 34. Red1 {[%emt 0:01:59]} Rxd1 {[%emt 0:00:05]} 35. Rxd1 {[%emt 0:00:01]} bxc5 {[%emt 0:00:01]} 36. Rc1 {[%emt 0:00:27]} Nb4 {[%emt 0:00:11]} 37. Rxc5 {[%emt 0:00:27]} Kf7 {[%emt 0:01:20]} 38. Ra5 {[%emt 0:00:12]} a6 {[%emt 0:00:07]} 39. Ra4 {[%emt 0:01:03]} c5 {[%emt 0:00:14]} 40. Ra5 {[%emt 0:00:17]} Nd3 {[%emt 0:00:05]} 41. b3 {[%emt 0:00:57]} Ke6 {[%emt 0:02:43]} 42. Rxa6+ {[%emt 0:00:04]} Ke5 {[%emt 0:00:03]} 43. f4+ {[%emt 0:00:53]} Ke4 {[%emt 0:00:03]} 44. Rxf6 {[%emt 0:01:09]} Ne1+ {[%emt 0:00:06]} 45. Kf1 {[%emt 0:00:24]} Nf3 {[%emt 0:01:03]} 46. Re6+ {[%emt 0:00:43]} Kd5 {[%emt 0:00:07]} 47. Re2 {[%emt 0:01:36]} Nd4 {[%emt 0:00:55]} 48. Re5+ {[%emt 0:00:30]} Kc6 {[%emt 0:00:22]} 49. Re3 {[%emt 0:00:08]} Kb5 {[%emt 0:00:09]} 50. Rd3 {[%emt 0:00:50]} Nc6 {[%emt 0:03:33]} 51. f5 {[%emt 0:00:30]} Ne5 {[%emt 0:00:31]} 52. f6 {[%emt 0:00:42]} Kc6 {[%emt 0:00:27]} 53. Re3 {[%emt 0:00:37]} Nxg4 {[%emt 0:01:09]} 54. Re6+ {[%emt 0:00:30]} Kd7 {[%emt 0:00:20]} 55. f7 {[%emt 0:00:15]} 1-0

[Event "53rd Mar Del Plata Open 2024"]
[Site "Mar Del Plata"]
[Date "2024.03.30"]
[Round "8.9"]
[White "Espinoza Palomino, Willyam"]
[Black "Ocampos, Ian"]
[Result "1-0"]
[ECO "B32"]
[WhiteElo "2400"]
[BlackElo "2208"]
[Annotator "TA"]
[PlyCount "71"]
[EventDate "2024.03.23"]
[EventType "swiss"]
[EventCountry "ARG"]
[SourceTitle "playchess.com"]
[Source "ChessBase"]
[SourceQuality "1"]
[TimeControl "5400+30"]

{[%evp 21,71,22,50,0,49,46,129,129,121,125,128,131,176,185,186,185,151,154,184,118,171,157,261,263,237,211,218,120,307,322,311,327,282,140,548,516,568,379,379,387,745,739,1942,850,2404,2488,2506,2519,2483,2467,2431,2367]} 1. e4 {[%emt 0:00:05]} c5 {[%emt 0:00:06]} 2. Nf3 {[%emt 0:00:30]} Nc6 {[%emt 0:00:05]} 3. d4 {[%emt 0:01:00]} cxd4 {[%emt 0:00:05]} 4. Nxd4 {[%emt 0:00:03]} e5 {[%emt 0:00:05]} 5. Nb5 {[%emt 0:00:31]} d6 {[%emt 0:00:06]} 6. N1c3 {[%emt 0:00:04]} a6 {[%emt 0:00:04]} 7. Na3 {[%emt 0:00:04]} Be7 {[%emt 0:00:05]} 8. Nc4 {[%emt 0:01:57]} b5 {[%emt 0:00:05]} 9. Ne3 {[%emt 0:00:09]} Nf6 {[%emt 0:00:06]} 10. Bd3 {[%emt 0:01:18]} O-O {[%emt 0:00:28]} 11. O-O {[%emt 0:05:16]} Be6 {[%emt 0:00:17]} 12. a4 {[%emt 0:01:38]} ({Better is} 12. Re1 $14) 12... b4 {[%emt 0:00:41]} (12... Nb4 $11) 13. Ncd5 $14 {[%emt 0:00:10]} Bxd5 {[%emt 0:00:12]} (13... a5 $14) 14. exd5 $16 {[%emt 0:05:54] White is better.} ({Don't do} 14. Nxd5 a5) 14... Nb8 {[%emt 0:00:53][%cal Bc6b8,Bb8d7,Bd7c5][%mdl 32] [#]} 15. a5 $1 {[%emt 0:13:16]} Nbd7 {[%emt 0:06:41]} 16. Bd2 {[%emt 0:28:37]} b3 {[%emt 0:05:57]} 17. cxb3 {[%emt 0:00:36][%cal Bc2b3,Bb3b4][%mdl 32]} Ne8 {[%emt 0:04:15]} 18. Qe2 {[%emt 0:07:08] Black is weak on the light squares} Nc7 {[%emt 0:01:01]} 19. Rac1 {[%emt 0:04:40] White is much more active.} Nc5 {[%emt 0:00:58]} 20. Bc4 {[%emt 0:01:56] A strong pair of Bishops.} (20. Bc2 $18) 20... f5 {[%emt 0:08:30]} (20... Bg5 $16 21. Bb4 g6) 21. f3 {[%emt 0:03:34]} Qb8 {[%emt 0:08:15]} (21... Nd7 $16 22. b4 Bg5) 22. b4 $18 {[%emt 0:00:28]} Nd7 {[%emt 0:00:02]} 23. Rc2 {[%emt 0:02:54]} Qb7 {[%emt 0:02:20]} 24. Qd3 {[%emt 0:02:37]} (24. Bd3 $18 e4 25. fxe4 fxe4 26. Bxe4) 24... e4 $2 {[%emt 0:06:04]} 25. fxe4 {[%emt 0:01:34]} Ne5 {[%emt 0:00:09]} 26. Qd4 {[%emt 0:03:23]} fxe4 {[%emt 0:08:53]} 27. Nf5 {[%emt 0:01:06]} (27. Qb6 $18 Qa7 28. Rxf8+ Bxf8 29. Be2) 27... Rf7 {[%emt 0:12:16][%mdl 8192] Loses the game.} (27... Bf6 $16 28. Qxe4 (28. Nxd6 Nf3+ 29. Kh1 Nxd4 $16) 28... Nxc4) 28. Qb6 {[%emt 0:01:03]} Rb8 {[%emt 0:00:47]} 29. Nxe7+ {[%emt 0:05:59]} Rxe7 {[%emt 0:00:08]} 30. Qxd6 {[%emt 0:00:08]} Qa7+ $2 {[%emt 0:19:12]} (30... Ree8 31. Re1 Nxc4 32. Rxc4 Nxd5 33. Rcxe4 Rf8) 31. Kh1 {[%emt 0:00:15] White is clearly winning.} Rbe8 {[%emt 0:00:37]} 32. Ba2 {[%emt 0:00:32]} (32. Qxe7 $142 Rxe7 33. d6+ Nxc4 34. dxe7) 32... Nb5 {[%emt 0:05:35] [#]} 33. Qxe7 $3 {[%emt 0:01:28][%mdl 512]} Qxe7 {[%emt 0:00:47]} 34. d6+ {[%emt 0:00:01][%cal Bd5d6,Bd6d7][%mdl 32]} Qf7 {[%emt 0:00:08]} 35. Bxf7+ {[%emt 0:02:55]} Nxf7 {[%emt 0:00:04]} 36. d7 {[%emt 0:00:03] Weighted Error Value: White=0.48/Black=0.62.  Loses game:     	---       	Black=2      Mistake:       	White=3     	Black=5      Inaccurate:     	White=1     	Black=2      OK:         	White=6     	Black=6      Best:        	White=3     	---        Strong:       	White=1     	---} 1-0

[Event "53rd Mar Del Plata Open 2024"]
[Site "Mar Del Plata"]
[Date "2024.03.29"]
[Round "8.10"]
[White "Flores, Diego"]
[Black "Spata, German"]
[Result "1/2-1/2"]
[ECO "D45"]
[WhiteElo "2530"]
[BlackElo "2421"]
[Annotator "TA"]
[PlyCount "51"]
[EventDate "2024.03.23"]
[EventType "swiss"]
[EventCountry "ARG"]
[SourceTitle "playchess.com"]
[Source "ChessBase"]
[SourceQuality "1"]
[TimeControl "5400+30"]

{[%evp 18,51,16,22,24,0,0,0,0,-2,0,0,0,0,29,0,31,12,25,0,0,0,0,7,47,29,39,0,0,0,20,18,46,46,46,43]} 1. c4 {[%emt 0:00:58]} c6 {[%emt 0:01:51]} 2. Nf3 {[%emt 0:00:40]} d5 {[%emt 0:00:32]} 3. e3 {[%emt 0:00:23]} Nf6 {[%emt 0:00:26]} 4. Nc3 {[%emt 0:00:27]} e6 {[%emt 0:00:53]} 5. b3 {[%emt 0:00:34]} Bd6 {[%emt 0:01:38]} 6. Bb2 {[%emt 0:00:15]} O-O {[%emt 0:00:47]} 7. d4 {[%emt 0:07:38]} Nbd7 {[%emt 0:00:19]} 8. Bd3 {[%emt 0:03:25]} b6 {[%emt 0:01:50]} 9. O-O {[%emt 0:00:28]} Bb7 {[%emt 0:00:11]} 10. Qc2 {[%emt 0:00:22]} Rc8 {[%emt 0:03:21]} 11. Rfd1 {[%emt 0:02:51]} Qe7 {[%emt 0:02:07]} 12. Rac1 {[%emt 0:07:15]} Rfd8 {[%emt 0:02:34] The position is equal.} 13. e4 {[%emt 0:03:44] [#] And now e5 would win.} e5 {[%emt 0:17:47]} 14. Re1 {[%emt 0:22:54]} dxc4 {[%emt 0:03:44]} 15. Bxc4 {[%emt 0:04:35]} b5 {[%emt 0:07:29]} 16. Bf1 {[%emt 0:01:05]} a6 {[%emt 0:05:52]} 17. g3 {[%emt 0:41:26]} Re8 {[%emt 0:09:00]} 18. a4 {[%emt 0:00:00]} exd4 {[%emt 0:08:46]} 19. Nxd4 {[%emt 0:00:00]} g6 {[%emt 0:00:39] Prevents Nf5.} 20. Nf3 {[%emt 0:00:00][%cal Oe4e5]} Ne5 {[%emt 0:03:44]} 21. Nxe5 {[%emt 0:00:00]} Bxe5 {[%emt 0:00:18]} 22. Bg2 {[%emt 0:00:00]} Rcd8 {[%emt 0:02:50]} 23. axb5 {[%emt 0:00:00]} cxb5 {[%emt 0:01:28] [#]} 24. Nd5 $1 {[%emt 0:00:00]} Nxd5 {[%emt 0:02:18]} (24... Qd6 25. Bxe5) 25. exd5 {[%emt 0:00:00]} Qd6 {[%emt 0:01:42]} 26. Bxe5 {[%emt 0:04:30] Weighted Error Value: White=0.07 (flawless) /Black=0.10 (very precise) .  Inaccurate:     	White=1     	Black=4      OK:         	White=6     	Black=8} 1/2-1/2